fUSD/lending_fUSD_20250112
["ID","MTS","AMOUNT","RATE_DAILY","PERIOD"]
[348664579,1736703055483,-500.0,0.00010956,2]
[348664580,1736703055493,-500.0,0.00010956,2]
[348664581,1736703055504,-550.16,0.00010956,2]
[348664582,1736703055514,-662.99,0.00010956,2]
[348664583,1736703055526,-500.0,0.00010956,2]
[348664584,1736703055537,-500.0,0.00010956,2]
[348664585,1736703055548,-500.0,0.00010956,2]
[348664586,1736703055559,-500.0,0.00010956,2]
[348664587,1736703055570,-773.0,0.00010956,2]
[348664588,1736703055580,-618.82,0.00010956,2]
[348664589,1736703055590,-1018.4,0.00010956,2]
[348664590,1736703055600,-500.0,0.00010956,2]
[348664591,1736703055610,-500.0,0.00010956,2]
[348664592,1736703055620,-520.44,0.00010956,2]
[348664593,1736703055631,-551.87,0.00010956,2]
[348664594,1736703055642,-500.0,0.00010956,2]
[348664595,1736703055654,-500.0,0.00010956,2]
[348664596,1736703055664,-500.0,0.00010956,2]
[348664597,1736703055674,-621.66,0.00010956,2]
[348664598,1736703055684,-500.0,0.00010956,2]
[348664599,1736703055696,-500.0,0.00010956,2]
[348664600,1736703055707,-741.52,0.00010956,2]
[348664601,1736703055719,-715.09,0.00010956,2]
[348664602,1736703055731,-695.27,0.00010956,2]
[348664603,1736703055743,-610.33,0.00010956,2]
[348664604,1736703055753,-503.36,0.00010956,2]
[348664605,1736703055764,-700.77,0.00010956,2]
[348664606,1736703055775,-500.0,0.00010956,2]
[348664607,1736703055786,-500.0,0.00010956,2]
[348664608,1736703055796,-622.6,0.00010956,2]
[348664609,1736703055808,-500.0,0.00010956,2]
[348664610,1736703055819,-926.15,0.00010956,2]
[348664611,1736703055830,-594.52,0.00010956,2]
[348664612,1736703055840,-835.47,0.00010956,2]
[348664613,1736703055851,-984.26,0.00010956,2]
[348664614,1736703055861,-4000.0,0.00010959,2]
[348664615,1736703055872,-150.0,0.00010959,2]
[348664616,1736703055882,-3970.75760939,0.00010982,2]
[348664617,1736703055894,-1134.2500942,0.00010992,2]
[348664618,1736703055904,-666.0,0.00010999,2]
[348664619,1736703055915,-500.0,0.00010999,2]
[348664620,1736703055925,-500.0,0.00010999,2]
[348664621,1736703055936,-500.0,0.00010999,2]
[348664622,1736703055946,-500.0,0.00010999,2]
[348664623,1736703055958,-854.14,0.00010999,2]
[348664624,1736703055968,-500.0,0.00010999,2]
[348664625,1736703055979,-500.0,0.00010999,2]
[348664626,1736703055989,-500.0,0.00010999,2]
[348664627,1736703056000,-500.0,0.00010999,2]
[348664628,1736703056010,-500.0,0.00010999,2]
[348664629,1736703056020,-500.0,0.00010999,2]
[348664630,1736703056031,-500.0,0.00010999,2]
[348664631,1736703056042,-547.01851663,0.00010999,2]
[348664632,1736703056052,-555.57,0.00010999,2]
[348664633,1736703056063,-500.0,0.00010999,2]
[348664634,1736703056075,-500.0,0.00010999,2]
[348664635,1736703056086,-500.0,0.00010999,2]
[348664636,1736703056097,-629.63197741,0.00010999,2]
[348664637,1736703056108,-194.65057905,0.00010999,2]
[348664638,1736703056119,-500.0,0.00010999,2]
[348664639,1736703056132,-500.0,0.00010999,2]
[348664640,1736703056143,-185.99757602,0.00010999,2]
[348664641,1736703056525,-500.0,0.00010999,2]
[348664642,1736703056538,-500.0,0.00010999,2]
[348664643,1736703056547,-704.11,0.00010999,2]
[348664644,1736703056556,-500.0,0.00010999,2]
[348664645,1736703056565,-500.0,0.00010999,2]
[348664646,1736703056574,-500.0,0.00010999,2]
[348664647,1736703056584,-500.0,0.00010999,2]
[348664648,1736703056594,-500.0,0.00010999,2]
[348664649,1736703056603,-500.0,0.00010999,2]
[348664650,1736703056612,-500.0,0.00010999,2]
[348664651,1736703056621,-500.0,0.00010999,2]
[348664652,1736703056630,-500.0,0.00010999,2]
[348664653,1736703056639,-150.60824624,0.00010999,2]
[348664654,1736703056649,-500.0,0.00010999,2]
[348664655,1736703056658,-500.0,0.00010999,2]
[348664656,1736703056668,-500.0,0.00010999,2]
[348664657,1736703056677,-500.0,0.00010999,2]
[348664658,1736703056686,-500.0,0.00010999,2]
[348664659,1736703056695,-500.0,0.00010999,2]
[348664660,1736703056704,-500.0,0.00010999,2]
[348664661,1736703056714,-500.0,0.00010999,2]
[348664662,1736703056722,-500.0,0.00010999,2]
[348664663,1736703056733,-500.0,0.00010999,2]
[348664664,1736703056743,-151.29335019,0.00010999,2]
[348664665,1736703056752,-500.0,0.00010999,2]
[348664666,1736703056762,-500.0,0.00010999,2]
[348664667,1736703056771,-500.0,0.00010999,2]
[348664668,1736703056780,-500.0,0.00010999,2]
[348664669,1736703056790,-500.0,0.00010999,2]
[348664670,1736703056800,-500.0,0.00010999,2]
[348664671,1736703056811,-500.0,0.00010999,2]
[348664672,1736703056820,-500.0,0.00010999,2]
[348664673,1736703056829,-500.0,0.00010999,2]
[348664674,1736703056839,-500.0,0.00010999,2]
[348664675,1736703056848,-500.0,0.00010999,2]
[348664676,1736703056857,-500.0,0.00010999,2]
[348664677,1736703056867,-500.0,0.00010999,2]
[348664678,1736703056875,-500.0,0.00010999,2]
[348664679,1736703056884,-500.0,0.00010999,7]
[348664680,1736703056894,-500.0,0.00010999,2]
[348664681,1736703056903,-500.0,0.00010999,2]
[348664682,1736703056912,-500.0,0.00010999,2]
[348664683,1736703056922,-500.0,0.00010999,2]
[348664684,1736703056931,-500.0,0.00010999,2]
[348664685,1736703056940,-500.0,0.00010999,2]
[348664686,1736703056949,-500.0,0.00010999,2]
[348664687,1736703056959,-500.0,0.00010999,2]
[348664688,1736703056968,-500.0,0.00010999,2]
[348664689,1736703056977,-500.0,0.00010999,2]
[348664690,1736703056987,-500.0,0.00010999,2]
[348664691,1736703056996,-504.42301847,0.00010999,2]
[348664692,1736703057005,-500.0,0.00010999,2]
[348664693,1736703057015,-500.0,0.00010999,2]
[348664694,1736703057024,-500.0,0.00010999,2]
[348664695,1736703057034,-500.0,0.00010999,2]
[348664696,1736703057044,-500.0,0.00010999,2]
[348664697,1736703057053,-500.0,0.00010999,2]
[348664698,1736703057063,-500.0,0.00010999,2]
[348664699,1736703057072,-999.0,0.00010999,2]
[348664700,1736703057081,-500.0,0.00010999,2]
[348664701,1736703057092,-500.0,0.00010999,2]
[348664702,1736703057101,-682.09,0.00010999,2]
[348664703,1736703057110,-500.0,0.00010999,2]
[348664704,1736703057120,-500.0,0.00010999,2]
[348664705,1736703057129,-900.89,0.00010999,2]
[348664706,1736703057140,-500.0,0.00010999,2]
[348664707,1736703057149,-984.46,0.00010999,2]
[348664708,1736703057159,-500.0,0.00010999,2]
[348664709,1736703057168,-666.0,0.00010999,2]
[348664710,1736703057176,-1100715.46886094,0.00011,2]
[348664711,1736703057506,-420.46011359,0.00011,2]
[348664712,1736703057517,-5852.59613395,0.00011,2]
[348664713,1736703057528,-2838.67051691,0.00011,2]
[348664714,1736703057823,-500.0,9.544e-05,2]
[348664715,1736703057832,-500.0,9.818e-05,2]
[348664716,1736703057841,-542.41231218,0.0001,2]
[348664717,1736703057850,-82472.72554452,0.0001,2]
[348664718,1736703057860,-500.0,0.00010092,2]
[348664719,1736703057869,-34241.0576693,0.00011,2]
[348664720,1736703057880,-13032.19454329,0.00011,2]
[348664721,1736703057892,-4941.65518114,0.00011,2]
[348664722,1736703057903,-19477.93655241,0.00011,2]
[348664723,1736703057922,-73845.59745727,0.00011,2]
[348664724,1736703057933,-993.61000001,0.00011,2]
[348664725,1736703057944,-376.517365,0.00011,2]
[348664726,1736703057956,-304.9683923,0.00011,2]
[348664727,1736703057967,-2857.39,0.00011,2]
[348664728,1736703057978,-272.3395,0.00011,2]
[348664729,1736703058005,-500.0,0.00010366,2]
[348664730,1736703058015,-5185.31124046,0.00011,2]
[348664731,1736703058026,-13049.07094828,0.00011,2]
[348664732,1736703058041,-4068.22284544,0.00011,2]
[348664733,1736703058478,-539.64570756,0.0001,2]
[348664734,1736703058488,-487.60469244,0.0001064,2]
[348664735,1736703058509,-12.39530756,0.0001064,2]
[348664736,1736703058521,-500.0,0.00010914,2]
[348664737,1736703058530,-806.84,0.00010999,2]
[348664738,1736703058541,-145324.08910854,0.00011,2]
[348664739,1736703058554,-1319.63744278,0.00011,2]
[348664740,1736703058567,-2324.0453042,0.00011,2]
[348664741,1736703058914,-442.361965,9.224e-05,2]
[348664742,1736703058923,-9992.15373643,0.00011,2]
[348664743,1736703059167,232.78,8.965e-05,2]
[348664744,1736703059183,-50237.87261767,0.00011,2]
[348664745,1736703071581,250.0,8.836e-05,2]
[348664746,1736703184556,200.0,8.822e-05,2]
[348664747,1736703192389,250.950034,0.00023,120]
[348664748,1736703195146,2000.0,0.00023,120]
[348664749,1736703230466,240.775265,0.00023,120]
[348664750,1736703238357,35912.27,8.798e-05,2]
[348664751,1736703260803,753.06,8.219e-05,2]
[348664752,1736703432286,470.56,8.607e-05,2]
[348664753,1736703508984,4353.51,8.56e-05,2]
[348664754,1736703541710,12346.11,8.586e-05,2]
[348664755,1736703554116,1027.38,8.586e-05,2]
[348664756,1736703576988,173.71,8.586e-05,2]
[348664757,1736703604754,2000.0,8.586e-05,2]
[348664758,1736703607154,7374.14,8.586e-05,2]
[348664759,1736703634893,1729.7,8.586e-05,2]
[348664760,1736703672284,500.0,9.27e-05,7]
[348664761,1736703800286,250.0,8.648e-05,2]
[348664762,1736703880555,250.0,8.59e-05,2]
[348664763,1736703886396,1000.0,8.59e-05,2]
[348664764,1736703906184,150.0,8.959e-05,2]
[348664765,1736703925790,8775.1,8.553e-05,2]
[348664766,1736703945843,250.0,8.553e-05,2]
[348664768,1736703978943,151.0,0.00023,120]
[348664769,1736704057107,200.0,8.526e-05,2]
[348664773,1736704108666,640.19,8.584e-05,2]
[348664774,1736704142390,795.87,8.219e-05,2]
[348664775,1736704154209,803.55,8.648e-05,2]
[348664793,1736704231937,-1127.19488473,8.996e-05,2]
[348664794,1736704231947,-150.0,8.996e-05,2]
[348664795,1736704231956,-1779.67030274,8.997e-05,2]
[348664796,1736704231967,-330.0,8.997e-05,2]
[348664797,1736704231996,-10593.71719971,8.997e-05,2]
[348664798,1736704232059,-1648.0,8.997e-05,2]
[348664799,1736704232070,-6623.3605065,8.997e-05,2]
[348664800,1736704232101,-79635.10660705,8.997e-05,2]
[348664801,1736704232111,-25691.54106587,8.997e-05,2]
[348664802,1736704232120,-584.27805932,8.997e-05,2]
[348664803,1736704232129,-954.1,8.998e-05,2]
[348664804,1736704232139,-726.68,8.998e-05,2]
[348664805,1736704232149,-1325.21,8.998e-05,2]
[348664806,1736704232161,-1230.82,8.998e-05,2]
[348664807,1736704232172,-2396.81,8.998e-05,2]
[348664808,1736704232183,-5230.43,8.998e-05,2]
[348664809,1736704232192,-1037.98,8.998e-05,2]
[348664810,1736704232201,-784.12,8.998e-05,2]
[348664811,1736704232211,-839.27,8.998e-05,2]
[348664812,1736704232220,-2068.06,8.998e-05,2]
[348664813,1736704232229,-500.0,8.998e-05,2]
[348664814,1736704232239,-944.01,8.998e-05,2]
[348664815,1736704232248,-1395.75,8.998e-05,2]
[348664816,1736704232257,-1873.98,8.998e-05,2]
[348664817,1736704232266,-906.95,8.998e-05,2]
[348664818,1736704232275,-1000.0,8.998e-05,2]
[348664819,1736704232285,-1183.38,8.998e-05,2]
[348664820,1736704232295,-500.0,8.998e-05,2]
[348664821,1736704232304,-500.92058106,8.998e-05,2]
[348664822,1736704232314,-2792.29,8.998e-05,2]
[348664823,1736704232324,-162.89,9.155e-05,2]
[348664824,1736704232333,-265.5992,9.17e-05,2]
[348664825,1736704232342,-9503.83,9.17e-05,2]
[348664826,1736704232353,-15869.5114,9.171e-05,2]
[348664827,1736704232361,-20736.3397,9.171e-05,2]
[348664828,1736704232372,-7240.959,9.171e-05,2]
[348664829,1736704232382,-1320.0593,9.171e-05,2]
[348664830,1736704232391,-5000.0,9.171e-05,2]
[348664831,1736704232401,-303.3121,9.172e-05,2]
[348664832,1736704232410,-168.8545,9.172e-05,2]
[348664834,1736704232419,-7277.0105,9.172e-05,2]
[348664836,1736704232429,-500.0,9.268e-05,2]
[348664838,1736704232439,-500.0,9.268e-05,2]
[348664840,1736704232448,-1656.41,9.268e-05,2]
[348664842,1736704232458,-1981.95,9.268e-05,2]
[348664844,1736704232467,-1367.79,9.268e-05,2]
[348664846,1736704232476,-500.0,9.268e-05,2]
[348664848,1736704232485,-836.51,9.268e-05,2]
[348664850,1736704232495,-2047.09,9.268e-05,2]
[348664852,1736704232504,-500.0,9.268e-05,2]
[348664854,1736704232513,-500.0,9.268e-05,2]
[348664856,1736704232522,-500.0,9.268e-05,2]
[348664858,1736704232531,-500.0,9.268e-05,2]
[348664859,1736704232540,-500.0,9.268e-05,2]
[348664861,1736704232550,-500.0,9.268e-05,2]
[348664863,1736704232560,-1117.41,9.268e-05,2]
[348664865,1736704232569,-500.0,9.268e-05,2]
[348664867,1736704232580,-501.18021556,9.268e-05,2]
[348664869,1736704232589,-500.0,9.268e-05,2]
[348664871,1736704232599,-500.0,9.268e-05,2]
[348664874,1736704232608,-542.92,9.268e-05,2]
[348664878,1736704232618,-624.41,9.268e-05,2]
[348664881,1736704232627,-500.0,9.268e-05,2]
[348664883,1736704232636,-500.0,9.269e-05,2]
[348664887,1736704232646,-500.0,9.269e-05,2]
[348664890,1736704232655,-500.0,9.269e-05,2]
[348664892,1736704232664,-500.0,9.269e-05,2]
[348664894,1736704232673,-500.0,9.269e-05,2]
[348664896,1736704232682,-500.0,9.269e-05,2]
[348664898,1736704232691,-500.0,9.269e-05,2]
[348664900,1736704232700,-547.09,9.269e-05,2]
[348664902,1736704232709,-500.0,9.269e-05,2]
[348664904,1736704232719,-502.05437485,9.269e-05,2]
[348664906,1736704232728,-500.0,9.269e-05,2]
[348664908,1736704232737,-500.0,9.269e-05,2]
[348664910,1736704232747,-500.0,9.269e-05,2]
[348664912,1736704232760,-500.0,9.269e-05,2]
[348664914,1736704232770,-500.0,9.269e-05,2]
[348664916,1736704232779,-500.0,9.269e-05,2]
[348664918,1736704232788,-500.0,9.269e-05,2]
[348664920,1736704232799,-500.0,9.269e-05,2]
[348664922,1736704232808,-500.0,9.269e-05,2]
[348664924,1736704232817,-500.0,9.269e-05,2]
[348664926,1736704232826,-500.0,9.269e-05,2]
[348664928,1736704232837,-521.02,9.269e-05,2]
[348664930,1736704232846,-500.0,9.269e-05,2]
[348664932,1736704232855,-500.0,9.269e-05,2]
[348664934,1736704232865,-500.0,9.269e-05,2]
[348664936,1736704232874,-500.0,9.269e-05,2]
[348664938,1736704232883,-500.32590016,9.269e-05,2]
[348664940,1736704232891,-500.0,9.269e-05,2]
[348664942,1736704232902,-500.0,9.269e-05,2]
[348664944,1736704232911,-500.0,9.269e-05,2]
[348664946,1736704232920,-500.0,9.269e-05,2]
[348664948,1736704232930,-500.0,9.269e-05,2]
[348664950,1736704232939,-500.0,9.269e-05,2]
[348664952,1736704232949,-500.0,9.269e-05,2]
[348664953,1736704232958,-500.0,9.269e-05,2]
[348664954,1736704232966,-500.0,9.269e-05,2]
[348664955,1736704232975,-500.0,9.269e-05,2]
[348664956,1736704232984,-188.25307377,9.269e-05,2]
[348664957,1736704232993,-500.0,9.269e-05,2]
[348664958,1736704233002,-682.79,9.269e-05,2]
[348664959,1736704233011,-500.0,9.269e-05,2]
[348664960,1736704233020,-500.0,9.269e-05,2]
[348664961,1736704233029,-500.0,9.269e-05,2]
[348664962,1736704233038,-500.0,9.269e-05,2]
[348664963,1736704233048,-413.2312913,9.269e-05,2]
[348664964,1736704233056,-500.0,9.269e-05,2]
[348664965,1736704233065,-500.0,9.269e-05,2]
[348664966,1736704233074,-500.0,9.269e-05,2]
[348664967,1736704233084,-555.04,9.269e-05,2]
[348664968,1736704233093,-500.0,9.269e-05,2]
[348664970,1736704233104,-500.0,9.269e-05,2]
[348664972,1736704233114,-500.0,9.269e-05,2]
[348664974,1736704233123,-500.0,9.269e-05,2]
[348664976,1736704233133,-562.95,9.269e-05,2]
[348664978,1736704233143,-500.0,9.269e-05,2]
[348664980,1736704233153,-500.0,9.269e-05,2]
[348664982,1736704233163,-500.0,9.269e-05,2]
[348664984,1736704233173,-500.0,9.269e-05,2]
[348664986,1736704233182,-500.0,9.269e-05,2]
[348664988,1736704233192,-878.86,9.269e-05,2]
[348664990,1736704233201,-1019.62,9.269e-05,2]
[348664992,1736704233212,-500.0,9.269e-05,2]
[348664994,1736704233221,-500.0,9.269e-05,2]
[348664996,1736704233231,-500.0,9.269e-05,2]
[348664998,1736704233240,-443.62633174,9.269e-05,2]
[348664999,1736704233251,-500.0,9.269e-05,2]
[348665001,1736704233261,-500.0,9.269e-05,2]
[348665003,1736704233271,-342.97632959,9.269e-05,2]
[348665005,1736704233280,-500.0,9.269e-05,2]
[348665007,1736704233291,-176.81081523,9.269e-05,2]
[348665009,1736704233301,-500.0,9.269e-05,2]
[348665011,1736704233310,-500.0,9.269e-05,2]
[348665013,1736704233320,-655.84,9.269e-05,2]
[348665015,1736704233329,-500.0,9.269e-05,2]
[348665017,1736704233339,-500.0,9.269e-05,2]
[348665019,1736704233349,-500.0,9.269e-05,2]
[348665020,1736704233359,-316.0861043,9.269e-05,2]
[348665021,1736704233369,-271.09360698,9.269e-05,2]
[348665022,1736704233379,-500.0,9.269e-05,2]
[348665023,1736704233388,-502.40614974,9.269e-05,2]
[348665024,1736704233398,-500.32994436,9.269e-05,2]
[348665025,1736704233407,-773.77,9.269e-05,2]
[348665026,1736704233417,-576.4,9.269e-05,2]
[348665027,1736704233426,-505.54684248,9.269e-05,2]
[348665028,1736704233436,-500.0,9.269e-05,2]
[348665029,1736704233445,-500.0,9.27e-05,2]
[348665030,1736704233455,-629.63197741,9.27e-05,2]
[348665031,1736704233465,-500.0,9.27e-05,2]
[348665032,1736704233475,-297.94813251,9.27e-05,2]
[348665033,1736704233485,-500.0,9.27e-05,2]
[348665034,1736704233495,-500.0,9.27e-05,2]
[348665035,1736704233505,-500.0,9.27e-05,2]
[348665036,1736704233514,-500.0,9.27e-05,2]
[348665037,1736704233524,-500.0,9.27e-05,2]
[348665038,1736704233534,-500.0,9.27e-05,2]
[348665039,1736704233543,-500.0,9.27e-05,2]
[348665040,1736704233553,-500.0,9.27e-05,2]
[348665041,1736704233563,-500.0,9.27e-05,2]
[348665042,1736704233573,-500.0,9.27e-05,2]
[348665043,1736704233583,-500.0,9.27e-05,2]
[348665044,1736704233592,-503.11914748,9.27e-05,2]
[348665045,1736704233602,-503.16861672,9.27e-05,2]
[348665046,1736704233612,-500.0,9.27e-05,2]
[348665047,1736704233621,-500.0,9.27e-05,2]
[348665048,1736704233631,-735.64,9.27e-05,2]
[348665049,1736704233641,-500.0,9.27e-05,2]
[348665050,1736704233650,-500.0,9.27e-05,2]
[348665051,1736704233660,-500.0,9.27e-05,2]
[348665052,1736704233670,-231.95547612,9.27e-05,2]
[348665053,1736704233680,-500.0,9.27e-05,2]
[348665054,1736704233689,-500.0,9.27e-05,2]
[348665055,1736704233699,-500.0,9.27e-05,2]
[348665056,1736704233708,-500.0,9.27e-05,2]
[348665057,1736704233718,-500.0,9.27e-05,2]
[348665058,1736704233728,-509.42545106,9.27e-05,2]
[348665059,1736704233738,-500.0,9.27e-05,2]
[348665060,1736704233747,-500.0,9.27e-05,2]
[348665061,1736704233760,-500.0,9.27e-05,2]
[348665062,1736704233770,-500.0,9.27e-05,2]
[348665063,1736704233779,-250.39124592,9.27e-05,2]
[348665064,1736704233789,-547.77625737,9.27e-05,2]
[348665065,1736704233799,-612.61,9.27e-05,2]
[348665066,1736704233810,-500.0,9.27e-05,2]
[348665067,1736704233820,-500.0,9.27e-05,2]
[348665068,1736704233829,-500.0,9.27e-05,2]
[348665069,1736704233840,-500.0,9.27e-05,2]
[348665070,1736704233849,-505.66436472,9.27e-05,2]
[348665071,1736704233859,-500.0,9.27e-05,2]
[348665072,1736704233868,-500.0,9.27e-05,2]
[348665073,1736704233877,-500.0,9.27e-05,2]
[348665074,1736704233887,-504.35845348,9.27e-05,2]
[348665075,1736704233897,-510.53195563,9.27e-05,2]
[348665076,1736704233906,-500.0,9.27e-05,2]
[348665077,1736704233915,-507.81,9.27e-05,2]
[348665078,1736704233926,-247.87634461,9.27e-05,2]
[348665079,1736704233936,-500.0,9.27e-05,2]
[348665080,1736704233946,-500.0,9.27e-05,2]
[348665081,1736704233955,-500.0,9.27e-05,2]
[348665082,1736704233965,-500.0,9.27e-05,2]
[348665083,1736704233975,-500.0,9.27e-05,2]
[348665084,1736704233984,-500.58910128,9.27e-05,2]
[348665085,1736704233994,-500.0,9.27e-05,2]
[348665086,1736704234003,-500.0,9.27e-05,2]
[348665087,1736704234013,-320.9517745,9.27e-05,2]
[348665088,1736704234022,-500.0,9.27e-05,2]
[348665089,1736704234031,-500.0,9.27e-05,2]
[348665090,1736704234041,-513.87,9.27e-05,2]
[348665091,1736704234050,-500.0,9.27e-05,2]
[348665092,1736704234060,-500.0,9.27e-05,2]
[348665093,1736704234070,-500.0,9.27e-05,2]
[348665094,1736704234079,-514.9,9.27e-05,2]
[348665095,1736704234089,-500.0,9.27e-05,2]
[348665096,1736704234098,-500.0,9.27e-05,2]
[348665097,1736704234107,-500.0,9.27e-05,2]
[348665098,1736704234116,-500.0,9.27e-05,2]
[348665099,1736704234125,-500.0,9.27e-05,2]
[348665100,1736704234135,-500.0,9.27e-05,2]
[348665101,1736704234144,-500.0,9.27e-05,2]
[348665102,1736704234154,-500.0,9.27e-05,2]
[348665103,1736704234163,-500.0,9.27e-05,2]
[348665104,1736704234173,-500.0,9.27e-05,2]
[348665105,1736704234183,-580.19,9.27e-05,2]
[348665106,1736704234192,-500.0,9.27e-05,2]
[348665107,1736704234202,-564.04,9.27e-05,2]
[348665108,1736704234211,-500.0,9.27e-05,2]
[348665109,1736704234220,-500.0,9.27e-05,2]
[348665110,1736704234230,-500.0,9.27e-05,2]
[348665111,1736704234239,-500.0,9.27e-05,2]
[348665112,1736704234250,-500.0,9.27e-05,2]
[348665113,1736704234259,-504.46595031,9.27e-05,2]
[348665114,1736704234268,-500.0,9.27e-05,2]
[348665115,1736704234278,-500.0,9.27e-05,2]
[348665116,1736704234287,-500.0,9.27e-05,2]
[348665117,1736704234297,-502.18,9.27e-05,2]
[348665118,1736704234306,-500.0,9.27e-05,2]
[348665119,1736704234316,-502.64508452,9.27e-05,2]
[348665120,1736704234326,-500.0,9.27e-05,2]
[348665121,1736704234335,-500.0,9.27e-05,2]
[348665122,1736704234345,-501.68593503,9.27e-05,2]
[348665123,1736704234354,-500.0,9.27e-05,2]
[348665124,1736704234364,-500.0,9.27e-05,2]
[348665125,1736704234373,-500.0,9.27e-05,2]
[348665126,1736704234383,-500.89118969,9.27e-05,2]
[348665127,1736704234392,-500.0,9.27e-05,2]
[348665128,1736704234402,-502.13144208,9.27e-05,2]
[348665129,1736704234412,-500.0,9.27e-05,2]
[348665130,1736704234421,-500.0,9.27e-05,2]
[348665131,1736704234431,-500.0,9.27e-05,2]
[348665132,1736704234441,-500.0,9.27e-05,2]
[348665133,1736704234450,-500.0,9.27e-05,2]
[348665134,1736704234460,-521.56850344,9.27e-05,2]
[348665135,1736704234470,-500.0,9.27e-05,2]
[348665136,1736704234479,-500.0,9.27e-05,2]
[348665137,1736704234488,-504.13291527,9.27e-05,2]
[348665138,1736704234499,-500.0,9.27e-05,2]
[348665139,1736704234509,-500.0,9.27e-05,2]
[348665140,1736704234519,-500.0,9.27e-05,2]
[348665141,1736704234529,-500.0,9.27e-05,2]
[348665142,1736704234538,-500.0,9.27e-05,2]
[348665143,1736704234548,-500.0,9.27e-05,2]
[348665144,1736704234558,-500.0,9.27e-05,2]
[348665145,1736704234568,-500.0,9.27e-05,2]
[348665146,1736704234577,-500.0,9.27e-05,2]
[348665147,1736704234587,-500.0,9.27e-05,2]
[348665148,1736704234596,-500.0,9.27e-05,2]
[348665149,1736704234605,-500.0,9.27e-05,2]
[348665150,1736704234615,-500.0,9.27e-05,2]
[348665151,1736704234624,-500.0,9.27e-05,2]
[348665152,1736704234634,-531.5,9.27e-05,2]
[348665153,1736704234644,-512.91,9.27e-05,2]
[348665154,1736704234653,-500.0,9.27e-05,2]
[348665155,1736704234663,-500.0,9.27e-05,2]
[348665156,1736704234672,-502.75240996,9.27e-05,2]
[348665157,1736704234682,-498.89783888,9.27e-05,2]
[348665158,1736704234691,-258.56,9.27e-05,2]
[348665159,1736704234701,-504.5,9.27e-05,2]
[348665160,1736704234710,-500.0,9.27e-05,2]
[348665161,1736704234719,-508.81,9.27e-05,2]
[348665162,1736704234728,-500.0,9.27e-05,2]
[348665163,1736704234738,-500.0,9.27e-05,2]
[348665164,1736704234751,-500.0,9.27e-05,2]
[348665165,1736704234762,-500.0,9.27e-05,2]
[348665166,1736704234772,-500.0,9.27e-05,2]
[348665167,1736704234783,-500.56444789,9.27e-05,2]
[348665168,1736704234793,-500.0,9.27e-05,2]
[348665169,1736704234803,-500.0,9.27e-05,2]
[348665170,1736704234813,-500.0,9.27e-05,2]
[348665171,1736704234824,-500.0,9.27e-05,2]
[348665172,1736704234834,-500.0,9.27e-05,2]
[348665173,1736704234843,-500.0,9.27e-05,2]
[348665174,1736704234854,-511.92,9.27e-05,2]
[348665175,1736704234864,-500.0,9.27e-05,2]
[348665176,1736704234874,-501.90213283,9.27e-05,2]
[348665177,1736704234883,-503.64179887,9.27e-05,2]
[348665178,1736704234893,-500.0,9.27e-05,2]
[348665179,1736704234903,-500.0,9.27e-05,2]
[348665180,1736704234911,-500.0,9.27e-05,2]
[348665181,1736704234921,-500.0,9.27e-05,2]
[348665182,1736704234931,-500.0,9.27e-05,2]
[348665183,1736704234940,-500.0,9.27e-05,2]
[348665184,1736704234950,-500.0,9.27e-05,2]
[348665185,1736704234959,-274.95124582,9.27e-05,2]
[348665186,1736704234968,-500.0,9.27e-05,2]
[348665187,1736704234978,-300.0,9.27e-05,2]